fUSD/lending_fUSD_20241019
["ID","MTS","AMOUNT","RATE_DAILY","PERIOD"]
[340485992,1729308646713,-155.06349341,0.00020845,5]
[340485993,1729308646723,-160.88278227,0.00020893,2]
[340485994,1729308646732,-150.0,0.00021,2]
[340485995,1729308646742,-171.73912284,0.00021241,2]
[340485996,1729308646756,-806.41047797,0.00021241,2]
[340485997,1729308646768,-269.06156908,0.00021241,2]
[340485998,1729308646782,-1342.22071286,0.00021241,2]
[340485999,1729308646791,-3029.0,0.000213,2]
[340486000,1729308646802,-157.46,0.00021461,2]
[340486001,1729308646812,-150.0,0.00021467,2]
[340486002,1729308646823,-202.0,0.000216,2]
[340486003,1729308646832,-1076.0,0.000216,2]
[340486004,1729308646844,-160.88278227,0.00021695,2]
[340486005,1729308646854,-678.5,0.0002185,2]
[340486006,1729308646864,-195.95597485,0.00021918,2]
[340486007,1729308899953,-160.91,0.00010959,2]
[340486011,1729309336232,157.46,0.00010959,2]
[340486012,1729309402882,150.0,0.00027,60]
[340486013,1729309630108,-151.63404891,0.00012275,2]
[340486014,1729309630128,-296.0248,0.00012298,2]
[340486015,1729309630148,-150.0,0.00013918,2]
[340486016,1729309630167,-150.0,0.00013945,2]
[340486017,1729309630188,-298.0,0.00013945,2]
[340486018,1729309630208,-150.0,0.00013946,2]
[340486019,1729309630227,-305.87139265,0.00013946,2]
[340486020,1729309635311,-144.12860735,0.00013946,2]
[340486021,1729309635331,-190.3740662,0.00013946,2]
[340486024,1729309783380,240.5,0.00027,60]
[340486025,1729309832543,-150.0,0.00013945,2]
[340486026,1729309832552,-300.0,0.00013945,2]
[340486027,1729309832561,-1054.6259338,0.00013946,2]
[340486028,1729309832570,-560.0,0.00013946,2]
[340486029,1729309832579,-812.0,0.00013946,2]
[340486030,1729309832589,-555.0,0.00013946,2]
[340486031,1729309832601,-936.0,0.00013946,2]
[340486032,1729309832609,-3358.0,0.00013946,2]
[340486033,1729309832619,-1794.353,0.00013946,2]
[340486034,1729309832628,-1151.0,0.00013946,2]
[340486035,1729309832637,-13537.0,0.00013946,2]
[340486036,1729309832646,-150.0,0.00013946,2]
[340486037,1729309832655,-450.0,0.00016946,2]
[340486038,1729309832665,-1245.0,0.00016946,2]
[340486039,1729309832674,-560.0,0.00016946,2]
[340486040,1729309832683,-812.0,0.00016946,2]
[340486041,1729309832693,-555.0,0.00016946,2]
[340486042,1729309832702,-936.0,0.00016946,2]
[340486043,1729309832711,-3358.0,0.00016946,2]
[340486044,1729309832721,-1151.0,0.00016946,2]
[340486045,1729309832734,-1425.56607179,0.00016946,2]
[340486046,1729309832746,-1491.79775341,0.00016946,2]
[340486047,1729309832757,-10619.6361748,0.00016946,2]
[340486048,1729309832766,-150.0,0.00016946,2]
[340486049,1729309832776,-492.21,0.000187,2]
[340486050,1729309832785,-500.0,0.00019946,2]
[340486051,1729309832794,-450.0,0.00019946,2]
[340486052,1729309832805,-1245.0,0.00019946,2]
[340486053,1729309832814,-273.303,0.00019946,2]
[340486054,1729309832823,-812.0,0.00019946,2]
[340486055,1729309832832,-555.0,0.00019946,2]
[340486056,1729309832841,-936.0,0.00019946,2]
[340486057,1729309832852,-3358.0,0.00019946,2]
[340486058,1729309832861,-527.264,0.00019946,2]
[340486060,1729309832870,-7290.411,0.00019946,2]
[340486062,1729309832879,-150.0,0.00019946,2]
[340486064,1729309832888,-150.0,0.0002,2]
[340486066,1729309832897,-1003.19191784,0.0002,2]
[340486068,1729309832906,-16377.57880807,0.0002,2]
[340486204,1729309840520,-500.00813981,0.0002,2]
[340486252,1729309843827,-3081.27180927,0.0002,2]
[340486256,1729309843839,-3708.15162065,0.0002,2]
[340486283,1729309846503,-453.05290074,0.0002,2]
[340486284,1729309846564,-2633.52661891,0.0002,2]
[340486374,1729309864249,156.85,0.00010959,2]
[340486375,1729309991021,500.0,0.00027,120]
[340486376,1729309994831,2000.0,0.00027,120]
[340486377,1729309997857,500.0,0.00027,120]
[340486378,1729310001846,500.0,0.00027,120]
[340486379,1729310006706,200.0,0.00027,120]
[340486380,1729310189198,550.0,0.0001,2]
[340486381,1729310232045,263.59563969,0.00027,60]
[340486382,1729310527841,162.21,0.00025596,120]
[340486383,1729310590332,500.0,0.00027,120]
[340486384,1729310594226,568.574854,0.00027,120]
[340486385,1729310596330,500.0,0.00027,120]
[340486386,1729310600076,500.0,0.00027,120]
[340486387,1729310606797,200.0,0.00027,120]
[340486388,1729310837169,-150.0,0.00013946,2]
[340486389,1729310837191,-369.42920173,0.00013946,2]
[340486395,1729311032245,-150.0,0.00012841,2]
[340486396,1729311032256,-74.10579827,0.00013946,2]
[340486397,1729311032265,-319.99408753,0.00013946,2]
[340486398,1729311032278,-665.27138989,0.00013946,2]
[340486399,1729311032298,-259.73452258,0.00013946,2]
[340486400,1729311032308,-812.0,0.00013946,2]
[340486401,1729311032317,-936.0,0.00013946,2]
[340486402,1729311032327,-555.0,0.00013946,2]
[340486403,1729311032337,-1006.81,0.00013946,2]
[340486404,1729311032346,-150.0,0.00015841,2]
[340486405,1729311032356,-1245.0,0.00016946,2]
[340486406,1729311032365,-812.0,0.00016946,2]
[340486407,1729311032374,-936.0,0.00016946,2]
[340486408,1729311032383,-555.0,0.00016946,2]
[340486409,1729311032392,-1000.0,0.000173,2]
[340486410,1729311032402,-228.0,0.000173,2]
[340486411,1729311032411,-361.0,0.000173,2]
[340486412,1729311032420,-497.1,0.00017786,2]
[340486413,1729311032429,-150.0,0.00019451,2]
[340486414,1729311032438,-212.54253472,0.00019618,2]
[340486415,1729311032448,-6848.66773599,0.00019656,2]
[340486416,1729311032461,-9807.59285212,0.00019656,2]
[340486417,1729311032479,-3615.76069095,0.00019656,2]
[340486418,1729311032490,-952.22552476,0.00019656,2]
[340486420,1729311034052,158.23,0.00010959,2]
[340486422,1729311038276,-585.79655138,0.00019656,2]
[340486423,1729311038486,-1067.48779237,0.00019656,2]
[340486424,1729311038498,-1022.46885243,0.00019656,2]
[340486425,1729311038507,-250.0,0.00019666,2]
[340486426,1729311038516,-179.99,0.00019666,3]
[340486427,1729311038525,-200.0,0.0001967,2]
[340486428,1729311038534,-250.0,0.00019691,2]
[340486429,1729311038543,-499.99,0.00019726,2]
[340486430,1729311038552,-1000.0,0.00019727,2]
[340486431,1729311038561,-212.54253473,0.00019774,2]
[340486432,1729311038570,-6415.0,0.00019828,2]
[340486433,1729311038579,-2751.0,0.00019844,2]
[340486434,1729311038589,-435.41180207,0.00019863,2]
[340486435,1729311038600,-64.58819793,0.00019863,2]
[340486436,1729311038609,-643.307,0.00019946,2]
[340486437,1729311038618,-817.841,0.00019946,2]
[340486438,1729311038627,-555.0,0.00019946,2]
[340486439,1729311038636,-444.44,0.00019999,2]
[340486440,1729311038645,-3232.48380207,0.0002,2]
[340486464,1729311040217,-4477.87042098,0.0002,2]
[340486465,1729311040229,-1993.92653735,0.0002,2]
[340486466,1729311040240,-785.43829617,0.0002,2]
[340486467,1729311040375,-2336.89922027,0.0002,2]
[340486468,1729311040387,-2393.09162691,0.0002,2]
[340486469,1729311040430,-12872.61910855,0.0002,2]
[340486470,1729311040443,-50431.46279582,0.0002,2]
[340486471,1729311040452,-150.0,0.0002,2]
[340486472,1729311040462,-497.1,0.0002005,2]
[340486473,1729311040472,-250.0,0.0002037,2]
[340486474,1729311040482,-604.59,0.00020463,2]
[340486475,1729311040491,-162.21,0.00020477,2]
[340486476,1729311040500,-166.75,0.00020501,2]
[340486477,1729311040509,-174.63,0.00020556,2]
[340486478,1729311040519,-2403.90721256,0.00020645,2]
[340486479,1729311040528,-6500.6216,0.00020645,2]
[340486480,1729311040537,-158.91,0.00020782,2]
[340486481,1729311040547,-166.76,0.00020786,2]
[340486482,1729311040556,-150.0,0.00021,2]
[340486483,1729311040566,-2403.90721255,0.00021118,2]
[340486484,1729311040575,-167.29,0.00021121,2]
[340486485,1729311040585,-4049.0,0.00021134,2]
[340486486,1729311040594,-1022.0,0.000212,2]
[340486487,1729311040604,-2403.90721255,0.00021591,2]
[340486488,1729311040613,-180.0,0.00021598,2]
[340486489,1729311040622,-1850.0,0.00021624,2]
[340486490,1729311040631,-410.3002,0.00021725,2]
[340486491,1729311040641,-2689.909763,0.000218,2]
[340486492,1729311040651,-43302.9813,0.00021825,2]
[340486493,1729311040660,-151.0,0.00021825,2]
[340486494,1729311040670,-151.0,0.00021825,2]
[340486495,1729311040681,-233.175731,0.00021825,2]
[340486496,1729311040690,-233.175731,0.00021825,2]
[340486497,1729311040700,-495.197901,0.00021825,2]
[340486498,1729311040709,-151.0,0.00021825,2]
[340486499,1729311040718,-495.197901,0.00021825,2]
[340486500,1729311040727,-151.0,0.00021825,2]
[340486501,1729311040737,-153.892525,0.00021825,2]
[340486502,1729311040746,-151.90046,0.00021825,2]
[340486503,1729311040755,-151.0,0.00021825,2]
[340486504,1729311040764,-151.0,0.00021825,2]
[340486505,1729311040773,-151.0,0.00021825,2]
[340486506,1729311040782,-151.0,0.00021825,2]
[340486507,1729311040792,-151.0,0.00021825,2]
[340486508,1729311040801,-248.0174,0.00021825,2]
[340486509,1729311040811,-151.0,0.00021825,2]
[340486510,1729311040819,-248.0174,0.00021825,2]
[340486511,1729311040828,-451.804271,0.00021825,2]
[340486512,1729311040838,-451.804271,0.00021825,2]
[340486513,1729311040848,-500.0,0.00021918,2]
[340486514,1729311040857,-500.0,0.00021918,2]
[340486515,1729311040867,-531.51753708,0.00021918,2]
[340486516,1729311040877,-49809.6600159,0.00021925,2]
[340486517,1729311040886,-10392.9988302,0.00021925,2]
[340486518,1729311040895,-151.0,0.00021925,7]
[340486519,1729311040905,-151.0,0.00021925,7]
[340486520,1729311040914,-151.0,0.00021925,7]
[340486521,1729311040923,-505.683955,0.00021925,7]
[340486522,1729311040932,-505.683955,0.00021925,7]
[340486523,1729311040941,-151.0,0.00021925,7]
[340486524,1729311040950,-151.0,0.00021925,7]
[340486525,1729311040961,-153.567873,0.00021925,7]
[340486526,1729311040969,-151.0,0.00021925,7]
[340486527,1729311040979,-607.275746,0.00021925,7]
[340486528,1729311040988,-607.275746,0.00021925,7]
[340486529,1729311040997,-151.0,0.00021925,7]
[340486530,1729311041006,-151.0,0.00021925,7]
[340486531,1729311041015,-151.0,0.00021925,7]
[340486532,1729311041024,-151.0,0.00021925,7]
[340486533,1729311041033,-151.0,0.00021925,7]
[340486534,1729311041043,-151.0,0.00021925,7]
[340486535,1729311041053,-151.0,0.00021925,7]
[340486536,1729311041063,-151.164636,0.00021925,7]
[340486537,1729311041072,-151.164636,0.00021925,7]
[340486538,1729311041082,-151.0,0.00021925,7]
[340486539,1729311041092,-151.0,0.00021925,7]
[340486540,1729311041101,-151.0,0.00021925,7]
[340486541,1729311041111,-178.827684,0.00021925,7]
[340486542,1729311041119,-151.0,0.00021925,7]
[340486543,1729311041130,-209.601175,0.00021925,7]
[340486544,1729311041143,-209.601175,0.00021925,7]
[340486545,1729311041152,-151.0,0.00021925,7]
[340486546,1729311041161,-178.624178,0.00021925,7]
[340486547,1729311041170,-178.624178,0.00021925,7]
[340486548,1729311041180,-151.0,0.00021925,7]
[340486549,1729311041189,-151.957352,0.00021925,7]
[340486550,1729311041198,-151.0,0.00021925,7]
[340486551,1729311041207,-151.0,0.00021925,7]
[340486552,1729311041216,-176.524925,0.00021925,7]
[340486553,1729311041225,-176.524925,0.00021925,7]
[340486554,1729311041235,-253.468877,0.00021925,7]
[340486555,1729311041244,-233.175731,0.00021925,7]
[340486556,1729311041253,-253.468877,0.00021925,7]
[340486557,1729311041263,-233.175731,0.00021925,7]
[340486558,1729311041272,-495.197901,0.00021925,7]
[340486559,1729311041281,-151.0,0.00021925,7]
[340486560,1729311041290,-495.197901,0.00021925,7]
[340486561,1729311041299,-151.0,0.00021925,7]
[340486562,1729311041309,-151.0,0.00021925,7]
[340486563,1729311041318,-151.0,0.00021925,7]
[340486564,1729311041328,-151.729705,0.00021925,7]
[340486565,1729311041339,-151.0,0.00021925,7]
[340486566,1729311041350,-151.0,0.00021925,7]
[340486567,1729311041360,-248.0174,0.00021925,7]
[340486568,1729311041369,-151.0,0.00021925,7]
[340486569,1729311041378,-248.0174,0.00021925,7]
[340486570,1729311041387,-451.804271,0.00021925,7]
[340486571,1729311041396,-451.804271,0.00021925,7]
[340486572,1729311041405,-328.948154,0.00021925,7]
[340486573,1729311041414,-151.0,0.00021925,7]
[340486574,1729311041424,-151.0,0.00021925,7]
[340486575,1729311041433,-328.948154,0.00021925,7]
[340486576,1729311041442,-3601.9809698,0.00021943,2]
[340486577,1729311041451,-869.1803459,0.00021958,2]
[340486578,1729311041460,-151.0,0.00021958,7]
[340486579,1729311041469,-248.0174,0.00021958,7]
[340486580,1729311041478,-151.0,0.00021958,7]
[340486581,1729311041487,-248.0174,0.00021958,7]
[340486582,1729311041495,-451.804271,0.00021958,7]
[340486583,1729311041504,-451.804271,0.00021958,7]
[340486584,1729311041513,-328.948154,0.00021958,7]
[340486585,1729311041522,-151.0,0.00021958,7]
[340486586,1729311041531,-151.0,0.00021958,7]
[340486587,1729311041541,-328.948154,0.00021958,7]
[340486588,1729311041550,-200.0,0.00022,2]
[340486589,1729311041559,-283.48078753,0.00022,2]
[340486590,1729311041567,-151.0,0.00022027,7]
[340486591,1729311041576,-151.0,0.00022027,7]
[340486592,1729311041585,-151.0,0.00022027,7]
[340486593,1729311041594,-213.5881484,0.00022027,7]
[340486594,1729311041603,-151.0,0.00022027,7]
[340486595,1729311041612,-587.85,0.00022027,2]
[340486596,1729311041621,-756.26,0.00022027,2]
[340486597,1729311041630,-756.26,0.00022027,2]
[340486598,1729311041639,-756.26,0.00022027,2]
[340486599,1729311041647,-424.39,0.00022027,2]
[340486600,1729311041657,-424.39,0.00022027,2]
[340486601,1729311041667,-756.26,0.00022027,2]
[340486602,1729311041678,-423.88,0.00022027,2]
[340486603,1729311041687,-756.26,0.00022027,2]
[340486604,1729311041695,-1646.69,0.00022027,2]
[340486605,1729311041704,-274.88510971,0.00022027,2]
[340486627,1729311043406,-810.732177,0.000209,2]
[340486628,1729311043415,-500.0,0.000219,2]
[340486629,1729311043425,-481.09489029,0.00022027,2]
[340486630,1729311043434,-151.0,0.00022063,7]
[340486631,1729311043444,-162.102757,0.00022063,7]
[340486632,1729311043453,-233.175731,0.00022063,7]
[340486633,1729311043463,-233.175731,0.00022063,7]
[340486634,1729311043472,-312.0282826,0.00022063,7]
[340486635,1729311043512,-183.1696184,0.00022063,7]
[340486636,1729311043521,-93.33646489,0.00022063,7]
[340486639,1729311046490,-401.86143611,0.00022063,7]
[340486640,1729311046499,-374.97073397,0.00022063,2]
[340486642,1729311631803,150.0,0.00027,60]
[340486643,1729311656430,160.97,0.00010959,2]
[340486645,1729311791535,500.0,0.00027,120]
[340486646,1729311795853,500.0,0.00027,120]
[340486647,1729311798909,500.0,0.00027,120]
[340486648,1729311803567,200.0,0.00027,120]
[340486650,1729311955137,213.67977187,6.94e-05,2]
[340486651,1729311991503,550.0,0.0001,2]
[340486652,1729312025121,-600.0,0.00012,2]
[340486653,1729312025141,-258.16915746,0.00012666,2]
[340486654,1729312044126,-1292.2921208,0.00012666,2]
[340486678,1729312231680,-184.66223306,0.000116,2]
[340486679,1729312231690,-291.66042597,0.000125,2]
[340486680,1729312231700,-13862.74479203,0.00012666,2]
[340486681,1729312231709,-853.21551917,0.00012899,2]
[340486682,1729312231719,-4197.75372224,0.00013,2]
[340486683,1729312231729,-3551.37943744,0.0001305,2]
[340486747,1729312237625,-987.45743925,0.0001305,2]
[340486748,1729312237647,-529.95012561,0.0001305,2]
[340486749,1729312237657,-268.40947762,0.00014,2]
[340486750,1729312237668,-20.41539677,0.0001439,2]
[340486751,1729312237680,-8652.69454083,0.0001439,2]
[340486752,1729312237690,-495.44,0.00018304,2]
[340486753,1729312237699,-788.17193268,0.00018304,2]
[340486754,1729312237845,-211.81806732,0.00018304,2]
[340486755,1729312237855,-104.80693334,0.000185,2]
[340486756,1729312237866,-255.19306666,0.000185,2]
[340486757,1729312237875,-1000.0,0.000185,2]
[340486758,1729312237884,-227.0,0.000185,2]
[340486759,1729312237894,-250.0,0.0002006,2]
[340486760,1729312237903,-170.36,0.00020128,2]
[340486762,1729312237913,-269.63,0.00020185,2]
[340486764,1729312237922,-2751.0,0.00020428,2]
[340486765,1729312237933,-1500.0,0.0002043,2]
[340486766,1729312237943,-690.38,0.00020511,2]
[340486767,1729312237952,-2422.48,0.00020511,2]
[340486768,1729312237961,-150.99,0.00020511,2]
[340486769,1729312237971,-495.44,0.00020568,2]
[340486770,1729312237980,-869.86459027,0.00020706,3]
[340486771,1729312237989,-499.99,0.00020706,2]
[340486772,1729312237998,-1650.69,0.00020706,2]
[340486773,1729312238007,-5210.33392542,0.00020806,2]
[340486776,1729312238739,528.47408,0.00027,60]
[340486792,1729312239588,-275.5344339,0.00020806,2]
[340486803,1729312242586,-13682.37357107,0.00020806,2]
[340486804,1729312242858,-4731.75806961,0.00020806,2]
[340486805,1729312242867,-3321.87,0.00020806,2]
[340486806,1729312242877,-250.0,0.00020809,2]
[340486807,1729312242886,-250.0,0.00020811,2]
[340486808,1729312242896,-800.0,0.0002083,2]
[340486809,1729312242905,-179.99,0.0002083,3]
[340486810,1729312242915,-355.552,0.00021029,2]
[340486811,1729312242924,-2726.0,0.000212,2]
[340486812,1729312242933,-301.21,0.00021342,2]
[340486813,1729312242942,-151.34,0.00021342,2]
[340486814,1729312242951,-150.0,0.00021342,2]
[340486815,1729312242960,-429.85,0.00021342,2]
[340486816,1729312242970,-150.0,0.00021342,2]
[340486817,1729312242979,-150.0,0.00021342,2]
[340486818,1729312242988,-545.85,0.00021342,2]
[340486819,1729312242996,-359.42,0.00021342,2]
[340486820,1729312243006,-150.0,0.00021342,2]
[340486821,1729312243015,-429.85,0.00021342,2]
[340486822,1729312243026,-150.0,0.00021342,2]
[340486823,1729312243035,-150.0,0.00021342,2]
[340486824,1729312243044,-150.0,0.00021342,2]
[340486825,1729312243054,-150.0,0.00021342,2]
[340486826,1729312243063,-359.42,0.00021342,2]
[340486827,1729312243072,-535.49,0.00021342,2]
[340486828,1729312243083,-150.0,0.00021342,2]
[340486829,1729312243092,-300.0,0.00021342,2]
[340486830,1729312243102,-150.0,0.00021342,2]
[340486831,1729312243111,-429.85,0.00021342,2]
[340486832,1729312243121,-150.0,0.00021342,2]
[340486833,1729312243130,-150.0,0.00021342,2]
[340486834,1729312243139,-150.0,0.00021342,2]
[340486835,1729312243148,-150.0,0.00021342,2]
[340486836,1729312243157,-359.42,0.00021342,2]
[340486837,1729312243166,-535.49,0.00021342,2]
[340486838,1729312243176,-150.0,0.00021342,2]
[340486839,1729312243186,-429.85,0.00021342,2]
[340486840,1729312243195,-359.42,0.00021342,2]
[340486841,1729312243205,-150.0,0.00021342,2]
[340486842,1729312243214,-535.49,0.00021342,2]
[340486843,1729312243223,-150.0,0.00021342,2]
[340486844,1729312243233,-150.0,0.00021342,2]
[340486845,1729312243242,-150.0,0.00021342,2]
[340486846,1729312243251,-150.0,0.00021342,2]
[340486847,1729312243260,-150.0,0.00021342,2]
[340486848,1729312243269,-535.49,0.00021342,2]
[340486849,1729312243279,-429.85,0.00021342,2]
[340486850,1729312243289,-359.42,0.00021342,2]
[340486851,1729312243298,-150.0,0.00021342,2]
[340486852,1729312243307,-153.05,0.00021342,2]
[340486853,1729312243316,-150.0,0.00021342,2]
[340486854,1729312243326,-150.0,0.00021342,2]
[340486855,1729312243335,-862.37,0.00021342,2]
[340486856,1729312243344,-440.51,0.00021342,2]
[340486857,1729312243353,-324.83,0.00021342,2]
[340486858,1729312243364,-150.0,0.00021342,2]
[340486859,1729312243374,-150.0,0.00021342,2]
[340486860,1729312243383,-359.42,0.00021342,2]
[340486861,1729312243393,-150.0,0.00021342,2]
[340486862,1729312243402,-150.0,0.00021342,2]
[340486863,1729312243411,-150.0,0.00021342,2]
[340486864,1729312243420,-150.0,0.00021342,2]
[340486865,1729312243429,-359.42,0.00021342,2]
[340486866,1729312243440,-150.0,0.00021342,2]
[340486867,1729312243450,-150.0,0.00021342,2]
[340486868,1729312243459,-359.42,0.00021342,2]
[340486869,1729312243468,-150.0,0.00021342,2]
[340486870,1729312243478,-150.0,0.00021342,2]
[340486871,1729312243487,-359.42,0.00021342,2]
[340486872,1729312243496,-150.0,0.00021342,2]
[340486873,1729312243506,-150.0,0.00021342,2]
[340486874,1729312243516,-359.42,0.00021342,2]
[340486875,1729312243528,-150.0,0.00021342,2]
[340486876,1729312243537,-150.0,0.00021342,2]
[340486877,1729312243547,-627.89,0.00021342,2]
[340486878,1729312243556,-150.0,0.00021342,2]
[340486879,1729312243565,-359.29,0.00021342,2]
[340486880,1729312243574,-150.0,0.00021342,2]
[340486881,1729312243583,-150.0,0.00021342,2]
[340486882,1729312243593,-150.0,0.00021342,2]
[340486883,1729312243606,-150.0,0.00021342,2]
[340486884,1729312243615,-150.0,0.00021342,2]
[340486885,1729312243624,-150.0,0.00021342,2]
[340486886,1729312243634,-150.0,0.00021342,2]
[340486887,1729312243643,-150.0,0.00021342,2]
[340486888,1729312243652,-150.0,0.00021342,2]
[340486889,1729312243662,-150.0,0.00021342,2]
[340486890,1729312243671,-150.0,0.00021342,2]
[340486891,1729312243682,-150.0,0.00021342,2]
[340486892,1729312243692,-150.0,0.00021342,2]
[340486893,1729312243701,-200.0,0.00021396,2]
[340486894,1729312243711,-1052.78256006,0.00021622,2]
[340486895,1729312243720,-1645.23797546,0.00021688,2]
[340486896,1729312243729,-150.0,0.00021769,2]
[340486897,1729312243738,-94085.4187781,0.0002178,2]
[340486898,1729312243747,-150.0,0.00021854,2]
[340486899,1729312243757,-150.0,0.00021871,2]
[340486900,1729312243766,-302.34,0.0002189,2]
[340486901,1729312243776,-150.0,0.000219,2]
[340486902,1729312243784,-150.0,0.00021901,2]
[340486903,1729312243793,-150.0,0.00021906,2]
[340486904,1729312243802,-150.0,0.00021917,2]
[340486905,1729312243812,-1645.23797538,0.00022045,2]
[340486906,1729312243820,-151.0,0.00022062,7]
[340486907,1729312243831,-2216.4945797,0.00022062,2]
[340486908,1729312243839,-151.0,0.00022062,7]
[340486909,1729312243848,-173.61218,0.00022062,7]
[340486910,1729312243858,-173.61218,0.00022062,7]
[340486911,1729312243867,-151.0,0.00022062,7]
[340486912,1729312243876,-151.0,0.00022062,7]
[340486913,1729312243886,-151.0,0.00022062,7]
[340486914,1729312243895,-153.774804,0.00022062,7]
[340486915,1729312243905,-152.629722,0.00022062,7]
[340486916,1729312243915,-34982.0415952,0.00022062,2]
[340486917,1729312243924,-160.76176,0.00022062,7]
[340486918,1729312243933,-160.76176,0.00022062,7]
[340486919,1729312243943,-228.121989,0.00022062,7]
[340486920,1729312243953,-228.121989,0.00022062,7]
[340486921,1729312243962,-6367.2193518,0.00022062,2]
[340486922,1729312243971,-254.268455,0.00022062,7]
[340486923,1729312243980,-151.0,0.00022062,7]
[340486924,1729312243989,-254.268455,0.00022062,7]
[340486925,1729312243999,-2000.0,0.00022063,2]
[340486926,1729312244008,-200.0,0.00022063,2]
[340486927,1729312244017,-2000.0,0.00022063,2]
[340486928,1729312244026,-200.0,0.00022063,2]
[340486929,1729312244035,-1313.5102,0.00022064,2]
[340486930,1729312244045,-186.44,0.00022067,2]
[340486931,1729312244055,-316.26299,0.00022092,7]
[340486932,1729312244064,-151.0,0.00022092,7]
[340486933,1729312244074,-316.26299,0.00022092,7]
[340486934,1729312244084,-151.0,0.00022092,7]
[340486935,1729312244093,-151.0,0.00022092,7]
[340486936,1729312244103,-151.0,0.00022092,7]
[340486937,1729312244112,-151.0,0.00022092,7]
[340486938,1729312244121,-151.0,0.00022092,7]
[340486939,1729312244131,-246.711116,0.00022092,7]
[340486940,1729312244140,-246.711116,0.00022092,7]
[340486941,1729312244149,-455.11556,0.00022092,7]
[340486942,1729312244159,-151.0,0.00022092,7]
[340486943,1729312244169,-455.11556,0.00022092,7]
[340486944,1729312244179,-151.0,0.00022092,7]
[340486945,1729312244188,-151.0,0.00022092,7]
[340486946,1729312244197,-188.641057,0.00022092,7]
[340486947,1729312244207,-167.22,0.00022137,30]
[340486948,1729312244216,-170.36,0.00022141,2]
[340486949,1729312244226,-150.0,0.00022164,2]
[340486950,1729312244235,-150.0,0.00022164,2]
[340486951,1729312244244,-150.0,0.00022164,2]
[340486952,1729312244253,-150.0,0.00022164,2]
[340486953,1729312244263,-150.0,0.00022164,2]
[340486954,1729312244272,-150.0,0.00022164,2]
[340486955,1729312244283,-150.0,0.00022164,2]
[340486956,1729312244292,-219.65,0.00022164,2]
[340486957,1729312244301,-150.0,0.00022164,2]
[340486958,1729312244311,-150.0,0.00022164,2]
[340486959,1729312244321,-150.0,0.00022164,2]
[340486960,1729312244332,-150.0,0.00022164,2]
[340486961,1729312244342,-150.0,0.00022164,2]
[340486962,1729312244352,-300.65,0.00022164,2]
[340486963,1729312244363,-300.62,0.00022164,2]
[340486964,1729312244373,-151.0,0.00022193,7]
[340486965,1729312244384,-151.0,0.00022193,7]
[340486966,1729312244394,-151.0,0.00022193,7]
[340486967,1729312244404,-151.0,0.00022193,7]
[340486968,1729312244414,-167.29,0.00022283,2]
[340486969,1729312244424,-2000.0,0.00022284,2]
[340486970,1729312244434,-200.0,0.00022284,2]
[340486971,1729312244443,-316.26299,0.00022284,7]
[340486972,1729312244452,-151.0,0.00022284,7]